fUST/lending_fUST_20250829
["ID","MTS","AMOUNT","RATE_DAILY","PERIOD"]
[381904036,1756397468531,-480.0,0.00020547,2]
[381904037,1756397468543,-480.0,0.00020547,2]
[381904038,1756397468552,-1841.6,0.00020547,2]
[381904039,1756397468562,-480.0,0.00020547,2]
[381904040,1756397468572,-480.0,0.00020547,2]
[381904041,1756397468582,-480.0,0.00020547,2]
[381904042,1756397468592,-2674.43,0.00020547,2]
[381904043,1756397468601,-771.42,0.00020547,2]
[381904044,1756397468611,-582.13762533,0.00020547,2]
[381904045,1756397468621,-480.0,0.00020547,2]
[381904046,1756397468631,-480.0,0.00020547,2]
[381904047,1756397468641,-480.0,0.00020547,2]
[381904048,1756397468651,-480.0,0.00020547,2]
[381904049,1756397468661,-480.0,0.00020547,2]
[381904050,1756397468671,-480.0,0.00020547,2]
[381904051,1756397468682,-678.18,0.00020547,2]
[381904052,1756397468692,-480.0,0.00020547,2]
[381904053,1756397468702,-480.0,0.00020547,2]
[381904054,1756397468712,-695.46,0.00020547,2]
[381904055,1756397468722,-480.0,0.00020547,2]
[381904056,1756397468732,-480.0,0.00020547,2]
[381904057,1756397468742,-480.0,0.00020547,2]
[381904058,1756397468752,-1089.64,0.00020547,2]
[381904059,1756397468762,-480.0,0.00020547,2]
[381904060,1756397468772,-575.55,0.00020547,2]
[381904061,1756397468781,-532.89,0.00020547,2]
[381904062,1756397468792,-480.0,0.00020547,2]
[381904063,1756397468802,-994.81313609,0.00020547,2]
[381904064,1756397468812,-511.87,0.00020547,2]
[381904065,1756397468822,-3975.27329182,0.00020547,2]
[381904066,1756397468833,-671.61,0.00020547,2]
[381904067,1756397468843,-480.0,0.00020547,2]
[381904068,1756397468852,-963.04,0.00020547,2]
[381904069,1756397468863,-480.0,0.00020547,2]
[381904070,1756397468873,-1022.04,0.00020547,2]
[381904071,1756397468883,-1196.29,0.00020547,2]
[381904072,1756397468892,-846.9,0.00020547,2]
[381904073,1756397468901,-1413.76,0.00020547,2]
[381904074,1756397468910,-480.0,0.00020547,2]
[381904075,1756397468920,-480.0,0.00020547,2]
[381904076,1756397468930,-480.0,0.00020547,2]
[381904077,1756397468939,-219.14901394,0.00020547,2]
[381904078,1756397468949,-1712.29,0.00020547,2]
[381904079,1756397468959,-480.0,0.00020547,2]
[381904080,1756397468969,-1644.88,0.00020547,2]
[381904081,1756397468979,-480.0,0.00020547,2]
[381904082,1756397468988,-480.0,0.00020547,2]
[381904083,1756397468998,-1229.1,0.00020547,2]
[381904084,1756397469008,-1331.75,0.00020547,2]
[381904085,1756397469022,-480.0,0.00020547,2]
[381904086,1756397469033,-480.0,0.00020547,2]
[381904087,1756397469044,-624.88,0.00020547,2]
[381904088,1756397469054,-480.0,0.00020547,2]
[381904089,1756397469064,-480.0,0.00020547,2]
[381904090,1756397469075,-546.07,0.00020547,2]
[381904091,1756397469085,-480.0,0.00020547,2]
[381904092,1756397469095,-480.0,0.00020547,2]
[381904093,1756397469106,-480.0,0.00020547,2]
[381904094,1756397469116,-480.0,0.00020547,2]
[381904095,1756397469126,-480.0,0.00020547,2]
[381904096,1756397469136,-480.0,0.00020547,2]
[381904097,1756397469146,-480.0,0.00020547,2]
[381904098,1756397469158,-480.0,0.00020547,2]
[381904099,1756397469168,-695.57,0.00020547,2]
[381904100,1756397469179,-480.0,0.00020547,2]
[381904101,1756397469188,-500.0,0.00020568,2]
[381904102,1756397469198,-151.0,0.000206,4]
[381904103,1756397469208,-428.53265422,0.00020601,4]
[381904104,1756397469218,-194.72792766,0.00020631,2]
[381904105,1756397469230,-647.0,0.000207,2]
[381904106,1756397469240,-761.0,0.00020777,2]
[381904107,1756397469250,-168.0,0.00020786,2]
[381904108,1756397469260,-168.0,0.00020793,2]
[381904109,1756397469270,-151.0,0.000208,3]
[381904110,1756397469280,-1000.0,0.000208,2]
[381904111,1756397469291,-150.0,0.000208,2]
[381904112,1756397469300,-358.0,0.00020807,2]
[381904113,1756397469310,-358.0,0.00020816,2]
[381904114,1756397469320,-480.0,0.00020821,2]
[381904115,1756397469330,-480.0,0.00020821,2]
[381904116,1756397469339,-480.0,0.00020821,2]
[381904117,1756397469349,-480.0,0.00020821,2]
[381904118,1756397469359,-480.0,0.00020821,2]
[381904119,1756397469369,-480.0,0.00020821,2]
[381904120,1756397469379,-69.33137032,0.00020821,2]
[381904121,1756397469586,-497.9753042,0.00020821,2]
[381904122,1756397469597,-480.0,0.00020821,2]
[381904123,1756397469608,-596.66,0.00020821,2]
[381904124,1756397469619,-480.0,0.00020821,2]
[381904125,1756397469628,-480.0,0.00020821,2]
[381904126,1756397469638,-480.0,0.00020821,2]
[381904127,1756397469647,-480.0,0.00020821,2]
[381904128,1756397469657,-480.0,0.00020821,2]
[381904129,1756397469667,-480.0,0.00020821,2]
[381904130,1756397469678,-480.0,0.00020821,2]
[381904131,1756397469688,-480.0,0.00020821,2]
[381904132,1756397469698,-480.0,0.00020821,2]
[381904133,1756397469709,-207.73,0.00020821,2]
[381904134,1756397469718,-549.14,0.00020821,2]
[381904135,1756397469728,-480.0,0.00020821,2]
[381904136,1756397469737,-480.0,0.00020821,2]
[381904137,1756397469747,-154.24,0.00020821,2]
[381904138,1756397469757,-480.0,0.00020821,2]
[381904139,1756397469767,-596.22912422,0.00020821,2]
[381904140,1756397469776,-692.08,0.00020821,2]
[381904141,1756397469786,-884.53,0.00020821,2]
[381904142,1756397469795,-480.0,0.00020821,2]
[381904143,1756397469804,-480.0,0.00020821,2]
[381904144,1756397469813,-480.0,0.00020821,2]
[381904145,1756397469821,-480.0,0.00020821,2]
[381904146,1756397469832,-480.0,0.00020821,2]
[381904147,1756397469841,-480.0,0.00020821,2]
[381904148,1756397469852,-480.0,0.00020821,2]
[381904149,1756397469863,-480.0,0.00020821,2]
[381904150,1756397469873,-533.52,0.00020821,2]
[381904151,1756397469885,-480.0,0.00020821,2]
[381904152,1756397469894,-480.0,0.00020821,2]
[381904153,1756397469903,-163.10390125,0.00020821,2]
[381904154,1756397469913,-480.0,0.00020821,2]
[381904155,1756397469925,-480.0,0.00020821,2]
[381904156,1756397469935,-480.0,0.00020821,2]
[381904157,1756397469945,-480.0,0.00020821,2]
[381904158,1756397469955,-593.05,0.00020821,2]
[381904159,1756397469965,-480.0,0.00020821,2]
[381904160,1756397469975,-480.0,0.00020821,2]
[381904161,1756397469986,-480.0,0.00020821,2]
[381904162,1756397469996,-480.0,0.00020821,2]
[381904163,1756397470007,-480.0,0.00020821,2]
[381904164,1756397470017,-480.0,0.00020821,2]
[381904165,1756397470028,-480.0,0.00020821,2]
[381904166,1756397470038,-480.0,0.00020821,2]
[381904167,1756397470047,-480.0,0.00020821,2]
[381904168,1756397470056,-480.0,0.00020821,2]
[381904169,1756397470066,-480.0,0.00020821,2]
[381904170,1756397470076,-480.0,0.00020821,2]
[381904171,1756397470086,-480.0,0.00020821,2]
[381904172,1756397470096,-480.0,0.00020821,2]
[381904173,1756397470105,-480.0,0.00020821,2]
[381904174,1756397470114,-488.35,0.00020821,2]
[381904175,1756397470123,-480.0,0.00020821,2]
[381904176,1756397470132,-480.0,0.00020821,2]
[381904177,1756397470245,-480.0,0.00020821,2]
[381904178,1756397470255,-480.0,0.00020821,2]
[381904179,1756397470264,-480.0,0.00020821,2]
[381904180,1756397470274,-480.0,0.00020821,2]
[381904181,1756397470284,-480.0,0.00020821,2]
[381904182,1756397470294,-480.0,0.00020821,2]
[381904183,1756397470304,-480.0,0.00020821,2]
[381904184,1756397470314,-480.0,0.00020821,2]
[381904185,1756397470323,-714.06,0.00020821,2]
[381904186,1756397470333,-579.72,0.00020821,2]
[381904187,1756397470343,-480.0,0.00020821,2]
[381904188,1756397470351,-480.0,0.00020821,2]
[381904189,1756397470361,-728.34,0.00020821,2]
[381904190,1756397470371,-480.0,0.00020821,2]
[381904191,1756397470380,-480.0,0.00020821,2]
[381904192,1756397470390,-938.63,0.00020821,2]
[381904193,1756397470399,-2169.0,0.00020821,2]
[381904194,1756397470409,-1178.09,0.00020821,2]
[381904195,1756397470419,-480.0,0.00020821,2]
[381904196,1756397470428,-480.0,0.00020821,2]
[381904197,1756397470438,-480.0,0.00020821,2]
[381904198,1756397470448,-649.8,0.00020821,2]
[381904199,1756397470457,-2414.97,0.00020821,2]
[381904200,1756397470466,-480.0,0.00020821,2]
[381904201,1756397470476,-480.0,0.00020821,2]
[381904202,1756397470485,-480.0,0.00020821,2]
[381904203,1756397470495,-1607.15,0.00020821,2]
[381904204,1756397470504,-480.0,0.00020821,2]
[381904205,1756397470514,-150.13,0.00020821,2]
[381904206,1756397470523,-1601.43,0.00020821,2]
[381904207,1756397470532,-932.0,0.00020821,2]
[381904208,1756397470542,-480.0,0.00020821,2]
[381904209,1756397470551,-480.0,0.00020821,2]
[381904210,1756397470561,-2011.15,0.00020821,2]
[381904211,1756397470570,-480.0,0.00020821,2]
[381904212,1756397470580,-480.0,0.00020821,2]
[381904213,1756397470590,-3709.43,0.00020821,2]
[381904214,1756397470600,-480.0,0.00020821,2]
[381904215,1756397470609,-480.0,0.00020821,2]
[381904216,1756397470619,-1247.18,0.00020821,2]
[381904217,1756397470629,-480.0,0.00020821,2]
[381904218,1756397470640,-480.0,0.00020821,2]
[381904219,1756397470650,-480.0,0.00020821,2]
[381904220,1756397470660,-1841.6,0.00020821,2]
[381904221,1756397470670,-480.0,0.00020821,2]
[381904222,1756397470680,-480.0,0.00020821,2]
[381904223,1756397470689,-480.0,0.00020821,2]
[381904224,1756397470699,-2674.43,0.00020821,2]
[381904225,1756397470708,-771.42,0.00020821,2]
[381904226,1756397470718,-480.0,0.00020821,2]
[381904227,1756397470727,-480.0,0.00020821,2]
[381904228,1756397470737,-223.17,0.00020821,2]
[381904229,1756397470746,-480.0,0.00020821,2]
[381904230,1756397470756,-480.0,0.00020821,2]
[381904231,1756397470765,-480.0,0.00020821,2]
[381904232,1756397470775,-678.18,0.00020821,2]
[381904233,1756397470785,-480.0,0.00020821,2]
[381904234,1756397470796,-480.0,0.00020821,2]
[381904235,1756397470806,-695.46,0.00020821,2]
[381904236,1756397470816,-480.0,0.00020821,2]
[381904237,1756397470826,-480.0,0.00020821,2]
[381904238,1756397470837,-480.0,0.00020821,2]
[381904239,1756397470847,-546.19,0.00020821,2]
[381904240,1756397470857,-1089.64,0.00020821,2]
[381904241,1756397470867,-575.55,0.00020821,2]
[381904242,1756397470877,-480.0,0.00020821,2]
[381904243,1756397470888,-511.87,0.00020821,2]
[381904244,1756397470897,-671.61,0.00020821,2]
[381904245,1756397470907,-963.04,0.00020821,2]
[381904246,1756397470916,-480.0,0.00020821,2]
[381904247,1756397470926,-480.0,0.00020821,2]
[381904248,1756397470936,-1022.04,0.00020821,2]
[381904249,1756397470946,-1196.29,0.00020821,2]
[381904250,1756397470956,-846.9,0.00020821,2]
[381904251,1756397470966,-1413.76,0.00020821,2]
[381904252,1756397470975,-480.0,0.00020821,2]
[381904253,1756397470985,-576.79,0.00020821,2]
[381904254,1756397470994,-307.4464015,0.00020821,2]
[381904255,1756397471003,-1712.29,0.00020821,2]
[381904256,1756397471012,-480.0,0.00020821,2]
[381904257,1756397471022,-1644.88,0.00020821,2]
[381904258,1756397471032,-480.0,0.00020821,2]
[381904259,1756397471042,-487.58,0.00020821,2]
[381904260,1756397471051,-1229.1,0.00020821,2]
[381904261,1756397471061,-1331.75,0.00020821,2]
[381904262,1756397471072,-480.0,0.00020821,2]
[381904263,1756397471082,-480.0,0.00020821,2]
[381904264,1756397471093,-624.88,0.00020821,2]
[381904265,1756397471103,-183.01,0.00020821,2]
[381904266,1756397471114,-480.0,0.00020821,2]
[381904267,1756397471124,-480.0,0.00020821,2]
[381904268,1756397471135,-480.0,0.00020821,2]
[381904269,1756397471147,-480.0,0.00020821,2]
[381904270,1756397471157,-152.86410289,0.00020821,2]
[381904271,1756397471167,-480.0,0.00020821,2]
[381904272,1756397471176,-480.0,0.00020821,2]
[381904273,1756397471187,-480.0,0.00020821,2]
[381904274,1756397471196,-480.0,0.00020821,2]
[381904275,1756397471206,-695.57,0.00020821,2]
[381904276,1756397471215,-480.0,0.00020821,2]
[381904277,1756397471226,-3067.7273105,0.00020839,2]
[381904278,1756397471236,-500.0,0.000209,7]
[381904279,1756397471245,-195.31,0.000209,7]
[381904280,1756397471255,-358.0,0.00020902,2]
[381904281,1756397471266,-168.0,0.00020909,2]
[381904282,1756397471275,-864.0,0.00020931,20]
[381904283,1756397471285,-3000.0,0.00021,2]
[381904284,1756397471296,-151.529525,0.00021,5]
[381904285,1756397471306,-151.529525,0.00021,10]
[381904286,1756397471315,-153.198706,0.00021,10]
[381904287,1756397471324,-3000.0,0.0002101,2]
[381904288,1756397471334,-3000.0,0.0002102,2]
[381904289,1756397471343,-168.0,0.00021024,2]
[381904290,1756397471354,-600.0,0.00021024,2]
[381904291,1756397471365,-3000.0,0.0002103,2]
[381904292,1756397471374,-3000.0,0.0002104,2]
[381904293,1756397471384,-3000.0,0.0002105,2]
[381904294,1756397471394,-454.378,0.0002105,2]
[381904295,1756397471404,-761.0,0.00021051,2]
[381904296,1756397471416,-168.0,0.00021059,2]
[381904297,1756397471426,-3000.0,0.0002106,2]
[381904298,1756397471436,-1500.0,0.00021068,2]
[381904299,1756397471446,-1310.22595781,0.00021068,2]
[381904300,1756397471455,-1500.0,0.00021068,2]
[381904301,1756397471465,-1500.0,0.00021068,2]
[381904302,1756397471475,-3000.0,0.0002107,2]
[381904303,1756397471487,-3000.0,0.0002108,2]
[381904304,1756397471498,-360.0,0.00021089,2]
[381904305,1756397471507,-3000.0,0.0002109,2]
[381904306,1756397471517,-480.0,0.00021095,2]
[381904307,1756397471528,-480.0,0.00021095,2]
[381904308,1756397471538,-480.0,0.00021095,2]
[381904309,1756397471549,-498.24007966,0.00021095,2]
[381904310,1756397471558,-480.0,0.00021095,2]
[381904311,1756397471567,-480.0,0.00021095,2]
[381904312,1756397471577,-480.0,0.00021095,2]
[381904313,1756397471587,-596.66,0.00021095,2]
[381904314,1756397471596,-480.0,0.00021095,2]
[381904315,1756397471606,-480.0,0.00021095,2]
[381904316,1756397471615,-480.0,0.00021095,2]
[381904317,1756397471625,-480.0,0.00021095,2]
[381904318,1756397471635,-480.0,0.00021095,2]
[381904319,1756397471645,-480.0,0.00021095,2]
[381904320,1756397471657,-164.38,0.00021095,2]
[381904321,1756397471667,-480.0,0.00021095,2]
[381904322,1756397471677,-239.20832343,0.00021095,2]
[381904323,1756397471687,-480.0,0.00021095,2]
[381904324,1756397471696,-692.08,0.00021095,2]
[381904325,1756397471706,-884.53,0.00021095,2]
[381904326,1756397471715,-480.0,0.00021095,2]
[381904327,1756397471725,-480.0,0.00021095,2]
[381904328,1756397471734,-480.0,0.00021095,2]
[381904329,1756397471744,-480.0,0.00021095,2]
[381904330,1756397471753,-480.0,0.00021095,2]
[381904331,1756397471763,-227.30215833,0.00021095,2]
[381904332,1756397471773,-533.52,0.00021095,2]
[381904333,1756397471783,-480.0,0.00021095,2]
[381904334,1756397471795,-394.23785373,0.00021095,2]
[381904335,1756397471805,-593.05,0.00021095,2]
[381904336,1756397471814,-480.0,0.00021095,2]
[381904337,1756397471824,-480.0,0.00021095,2]
[381904338,1756397471833,-480.0,0.00021095,2]
[381904339,1756397471843,-480.0,0.00021095,2]
[381904340,1756397471853,-480.0,0.00021095,2]
[381904341,1756397471862,-480.0,0.00021095,2]
[381904342,1756397471871,-550.34,0.00021095,2]
[381904343,1756397471881,-480.0,0.00021095,2]
[381904344,1756397471890,-451.57316738,0.00021095,2]
[381904345,1756397471899,-480.0,0.00021095,2]
[381904346,1756397471908,-480.0,0.00021095,2]
[381904347,1756397471918,-480.0,0.00021095,2]
[381904348,1756397471928,-480.0,0.00021095,2]
[381904349,1756397471937,-480.0,0.00021095,2]
[381904350,1756397471947,-480.0,0.00021095,2]
[381904351,1756397471956,-480.0,0.00021095,2]
[381904352,1756397471966,-480.0,0.00021095,2]
[381904353,1756397471976,-480.0,0.00021095,2]
[381904354,1756397471985,-480.0,0.00021095,2]
[381904355,1756397471995,-480.0,0.00021095,2]
[381904356,1756397472005,-480.0,0.00021095,2]
[381904357,1756397472015,-480.0,0.00021095,2]
[381904358,1756397472025,-480.0,0.00021095,2]
[381904359,1756397472034,-506.38,0.00021095,2]
[381904360,1756397472138,-714.06,0.00021095,2]
[381904361,1756397472156,-579.72,0.00021095,2]
[381904362,1756397472166,-480.0,0.00021095,2]
[381904363,1756397472175,-480.0,0.00021095,2]
[381904364,1756397472185,-728.34,0.00021095,2]
[381904365,1756397472195,-938.63,0.00021095,2]
[381904366,1756397472204,-2169.0,0.00021095,2]
[381904367,1756397472214,-1178.09,0.00021095,2]
[381904368,1756397472224,-480.0,0.00021095,2]
[381904369,1756397472234,-480.0,0.00021095,2]
[381904370,1756397472243,-649.8,0.00021095,2]
[381904371,1756397472252,-2414.97,0.00021095,2]
[381904372,1756397472262,-480.0,0.00021095,2]
[381904373,1756397472272,-480.0,0.00021095,2]
[381904374,1756397472281,-480.0,0.00021095,2]
[381904375,1756397472291,-1607.15,0.00021095,2]
[381904376,1756397472302,-480.0,0.00021095,2]
[381904377,1756397472311,-1601.43,0.00021095,2]
[381904378,1756397472321,-932.0,0.00021095,2]
[381904379,1756397472330,-480.0,0.00021095,2]
[381904380,1756397472340,-2011.15,0.00021095,2]
[381904381,1756397472349,-480.0,0.00021095,2]
[381904382,1756397472359,-480.0,0.00021095,2]
[381904383,1756397472369,-3709.43,0.00021095,2]
[381904384,1756397472379,-480.0,0.00021095,2]
[381904385,1756397472389,-480.0,0.00021095,2]
[381904386,1756397472399,-1247.18,0.00021095,2]
[381904387,1756397472409,-497.76,0.00021095,2]
[381904388,1756397472419,-480.0,0.00021095,2]
[381904389,1756397472428,-1841.6,0.00021095,2]
[381904390,1756397472438,-480.0,0.00021095,2]
[381904391,1756397472448,-480.0,0.00021095,2]
[381904392,1756397472458,-2674.43,0.00021095,2]
[381904393,1756397472468,-771.42,0.00021095,2]
[381904394,1756397472477,-480.0,0.00021095,2]
[381904395,1756397472487,-480.0,0.00021095,2]
[381904396,1756397472497,-480.0,0.00021095,2]
[381904397,1756397472508,-678.18,0.00021095,2]
[381904398,1756397472518,-480.0,0.00021095,2]
[381904399,1756397472528,-261.72520015,0.00021095,2]
[381904400,1756397472538,-695.46,0.00021095,2]
[381904401,1756397472549,-480.0,0.00021095,2]
[381904402,1756397472558,-480.0,0.00021095,2]
[381904403,1756397472568,-575.55,0.00021095,2]
[381904404,1756397472579,-1089.64,0.00021095,2]
[381904405,1756397472589,-480.0,0.00021095,2]
[381904406,1756397472599,-511.87,0.00021095,2]
[381904407,1756397472609,-671.61,0.00021095,2]
[381904408,1756397472620,-963.04,0.00021095,2]
[381904409,1756397472630,-480.0,0.00021095,2]
[381904410,1756397472641,-480.0,0.00021095,2]
[381904411,1756397472651,-1022.04,0.00021095,2]
[381904412,1756397472660,-555.68629022,0.00021095,2]
[381904413,1756397472828,-268.0,0.00019078,2]
[381904414,1756397473335,-379.94997958,0.00019078,2]
[381904415,1756397473368,466.75946888,0.000167,2]
[381904416,1756397473627,-8991.30803458,0.00019078,2]
[381904417,1756397473637,-480.0,0.00019178,2]
[381904418,1756397473647,-480.0,0.00019178,2]
[381904419,1756397473658,-480.0,0.00019178,2]
[381904420,1756397473668,-480.0,0.00019178,2]
[381904421,1756397473679,-480.0,0.00019178,2]
[381904422,1756397473689,-480.0,0.00019178,2]
[381904423,1756397473700,-480.0,0.00019178,2]
[381904424,1756397473710,-480.0,0.00019178,2]
[381904425,1756397473719,-151.0,0.00019178,2]
[381904426,1756397473729,-151.0,0.00019178,2]
[381904427,1756397473739,-151.0,0.00019178,2]
[381904428,1756397473750,-151.0,0.00019178,2]
[381904429,1756397473760,-151.0,0.00019178,2]
[381904430,1756397473770,-151.0,0.0001923,2]
[381904431,1756397473780,-151.0,0.00019407,2]
[381904432,1756397473790,-195.77,0.00019452,2]
[381904433,1756397473801,-480.0,0.00019452,2]
[381904434,1756397473811,-480.0,0.00019452,2]
[381904435,1756397473822,-480.0,0.00019452,2]
[381904436,1756397473831,-480.0,0.00019452,2]
[381904437,1756397473841,-480.0,0.00019726,2]
[381904438,1756397473948,-480.0,0.00019726,2]
[381904439,1756397473959,-480.0,0.00019726,2]
[381904440,1756397473970,-480.0,0.00019726,2]
[381904441,1756397473979,-335.23,0.0002,2]
[381904442,1756397473989,-480.0,0.0002,2]
[381904443,1756397473999,-409.0,0.00020022,2]
[381904444,1756397474008,-640.60370978,0.00021095,2]
[381904445,1756397474019,-846.9,0.00021095,2]
[381904446,1756397474030,-1413.76,0.00021095,2]
[381904447,1756397474040,-508.51,0.00021095,2]
[381904448,1756397474050,-1712.29,0.00021095,2]
[381904449,1756397474060,-480.0,0.00021095,2]
[381904450,1756397474070,-1644.88,0.00021095,2]
[381904451,1756397474082,-480.0,0.00021095,2]
[381904452,1756397474092,-1229.1,0.00021095,2]
[381904453,1756397474102,-1331.75,0.00021095,2]
[381904454,1756397474112,-232.84,0.00021095,2]
[381904455,1756397474122,-301.44958625,0.00021095,2]
[381904456,1756397474132,-624.88,0.00021095,2]
[381904457,1756397474143,-480.0,0.00021095,2]
[381904458,1756397474156,-480.0,0.00021095,2]
[381904459,1756397474167,-480.0,0.00021095,2]
[381904460,1756397474178,-468.71,0.00021095,2]
[381904461,1756397474189,-480.0,0.00021095,2]
[381904462,1756397474199,-480.0,0.00021095,2]
[381904463,1756397474209,-480.0,0.00021095,2]
[381904464,1756397474219,-695.57,0.00021095,2]
[381904465,1756397474229,-480.0,0.00021095,2]
[381904466,1756397474240,-151.0,0.000211,4]
[381904467,1756397474249,-3000.0,0.000211,2]
[381904468,1756397474259,-3000.0,0.0002111,2]
[381904469,1756397474270,-151.529525,0.0002111,7]
[381904470,1756397474280,-153.198706,0.0002111,7]
[381904471,1756397474290,-3000.0,0.0002112,2]
[381904472,1756397474303,-3000.0,0.0002113,2]
[381904473,1756397474312,-3000.0,0.0002114,2]
[381904474,1756397474324,-3000.0,0.0002115,2]
[381904475,1756397474334,-3000.0,0.0002116,2]
[381904476,1756397474344,-1765.0,0.00021168,2]
[381904477,1756397474353,-1765.0,0.00021168,2]
[381904478,1756397474364,-178.58130822,0.00021168,2]
[381904479,1756397474374,-492.26819195,0.00021168,2]
[381904480,1756397474384,-326.0,0.00021168,2]
[381904481,1756397474394,-326.0,0.00021168,2]
[381904482,1756397474404,-3000.0,0.0002117,2]
[381904483,1756397474414,-3000.0,0.0002118,2]
[381904484,1756397474423,-151.529525,0.00021186,2]
[381904485,1756397474433,-3000.0,0.0002119,2]
[381904486,1756397474443,-151.529525,0.00021197,3]
[381904487,1756397474454,-168.0,0.00021199,2]
[381904488,1756397474463,-3000.0,0.000212,2]
[381904489,1756397474473,-3000.0,0.0002121,2]
[381904490,1756397474482,-3000.0,0.0002122,2]
[381904491,1756397474492,-3000.0,0.0002123,2]
[381904492,1756397474501,-3000.0,0.0002124,2]
[381904493,1756397474511,-872.83429753,0.00021243,2]
[381904494,1756397474521,-3000.0,0.0002125,2]
[381904495,1756397474530,-3000.0,0.0002126,2]
[381904496,1756397474540,-24473.92875335,0.00021263,2]
[381904497,1756397474553,-11305.999999,0.00021263,2]
[381904498,1756397474569,-12980.60539958,0.00021263,2]
[381904499,1756397474677,-371.45465753,0.00019178,2]
[381904500,1756397533318,2618.93260809,0.00030019,60]
[381904501,1756397553749,-220.46657909,0.00016855,2]
[381904502,1756397553775,-252.02635842,0.00016954,2]
[381904503,1756397556594,-154.28168867,0.00016954,2]
[381904504,1756397556621,-70.03979513,0.00016954,2]
[381904505,1756397559077,-270.93645817,0.00016954,2]
[381904506,1756397559103,-53.14477274,0.00016954,2]
[381904507,1756397563007,-374.65611712,0.00016954,2]
[381904508,1756397565946,-72.19911014,0.00016954,2]
[381904509,1756397565972,-227.80088986,0.00016954,2]
[381904510,1756397568276,-102.51842833,0.00016954,2]
[381904511,1756397568304,-113.96705381,0.00016954,2]
[381904512,1756397571747,-222.67994737,0.00016954,2]
[381904513,1756397574681,-163.35299882,0.00016954,2]
[381904514,1756397574704,-41.4744665,0.00016954,2]
[381904515,1756397631029,-169.26903636,0.00016854,2]
[381904516,1756397632799,-292.02836959,0.00016854,2]
[381904517,1756397638620,-239.47778868,0.00016854,2]
[381904518,1756397647003,-226.72310244,0.00016854,2]
[381904519,1756397649481,-171.19046165,0.00016854,2]
[381904520,1756397653388,-124.37007311,0.00016854,2]
[381904521,1756397677545,-300.0,0.00016953,2]
[381904522,1756397677568,-26.46806716,0.00016954,2]
[381904523,1756397679388,-266.43646634,0.00016954,2]
[381904524,1756397679416,-62.75090014,0.00016954,2]
[381904525,1756397683504,-230.25978769,0.00016954,2]
[381904526,1756397686585,-206.98931217,0.00016954,2]
[381904527,1756397686613,-80.44456128,0.00016954,2]
[381904528,1756397691961,1173.34909478,0.000167,2]
[381904529,1756397692749,-162.85703326,0.00016954,2]
[381904530,1756397694659,-256.69840546,0.00016954,2]
[381904531,1756397694684,-34.17834154,0.00016954,2]
[381904532,1756397716473,453.73378026,0.000167,2]
[381904535,1756398136349,209.4501,0.00013699,2]
[381904624,1756398638508,-151.0,0.00016954,2]
[381904626,1756398638518,-300.0,0.00017291,2]